[Event "*** Titled Tuesday Blitz"]
[Site "Chess.com"]
[Date "2019.08.06"]
[Round "2"]
[White "riconaipe"]
[Black "Kubas1010"]
[Result "0-1"]
[WhiteElo "2443"]
[BlackElo "2587"]
[TimeControl "180+2"]
[EndTime "13:24:22 PDT"]
[Termination "Kubas1010 won by resignation"]

1. d4 {[%clk 0:03:01.9]} 1... Nf6 {[%clk 0:03:00.3]} 2. c4 {[%clk 0:03:02.8]}
2... d6 {[%clk 0:03:01.6]} 3. Nc3 {[%clk 0:03:03.2]} 3... Nbd7 {[%clk
0:03:03.1]} 4. Nf3 {[%clk 0:02:59]} 4... e5 {[%clk 0:03:04]} 5. g3 {[%clk
0:03:00.3]} 5... g6 {[%clk 0:03:03]} 6. Bg2 {[%clk 0:03:01.1]} 6... Bg7 {[%clk
0:03:04.3]} 7. O-O {[%clk 0:03:02.7]} 7... O-O {[%clk 0:03:05.9]} 8. e4 {[%clk
0:03:00]} 8... c6 {[%clk 0:03:05.8]} 9. h3 {[%clk 0:03:00.5]} 9... Re8 {[%clk
0:03:06.2]} 10. Be3 {[%clk 0:03:00.9]} 10... exd4 {[%clk 0:02:49.8]} 11. Nxd4
{[%clk 0:03:01.7]} 11... Nc5 {[%clk 0:02:49.7]} 12. Qc2 {[%clk 0:02:58.3]} 12...
Qe7 {[%clk 0:02:49.7]} 13. f3 {[%clk 0:02:08.5]} 13... Nh5 {[%clk 0:02:26.1]}
14. b4 {[%clk 0:01:58.9]} 14... Nxg3 {[%clk 0:02:03.2]} 15. bxc5 {[%clk
0:01:58.7]} 15... dxc5 {[%clk 0:02:04.4]} 16. Nb3 {[%clk 0:01:59.2]} 16... Nxf1
{[%clk 0:01:57]} 17. Rxf1 {[%clk 0:01:58.9]} 17... b6 {[%clk 0:01:57.1]} 18. f4
{[%clk 0:01:51.1]} 18... Qh4 {[%clk 0:01:52.9]} 19. e5 {[%clk 0:01:46.8]} 19...
Bxh3 {[%clk 0:01:50.6]} 20. Ne4 {[%clk 0:01:04.2]} 20... Rad8 {[%clk 0:01:39.8]}
21. Qf2 {[%clk 0:00:54.3]} 21... Qxf2+ {[%clk 0:01:38.1]} 22. Bxf2 {[%clk
0:00:50.7]} 22... Be6 {[%clk 0:01:30.2]} 23. Nd6 {[%clk 0:00:48.9]} 23... Re7
{[%clk 0:01:26.3]} 24. Bxc6 {[%clk 0:00:49.8]} 24... f6 {[%clk 0:01:24.3]} 25.
Bh4 {[%clk 0:00:43.2]} 25... g5 {[%clk 0:01:16.9]} 26. f5 {[%clk 0:00:43.5]}
26... gxh4 {[%clk 0:01:14.9]} 27. fxe6 {[%clk 0:00:43.6]} 27... fxe5 {[%clk
0:01:16]} 28. Nf5 {[%clk 0:00:41.6]} 28... Rxe6 {[%clk 0:01:11.1]} 29. Bd5
{[%clk 0:00:42.7]} 29... Rxd5 {[%clk 0:01:12.3]} 30. cxd5 {[%clk 0:00:43.9]}
30... Rg6+ {[%clk 0:01:13.6]} 31. Kf2 {[%clk 0:00:34.4]} 31... Kf7 {[%clk
0:01:03.4]} 32. Nd2 {[%clk 0:00:35]} 32... h3 {[%clk 0:00:55]} 33. Ne4 {[%clk
0:00:31]} 33... Rg2+ {[%clk 0:00:53.8]} 34. Kf3 {[%clk 0:00:31.6]} 34... Bf8
{[%clk 0:00:45.8]} 35. Nfg3 {[%clk 0:00:19.5]} 35... Rxa2 {[%clk 0:00:41.4]} 36.
Ng5+ {[%clk 0:00:20]} 36... Ke8 {[%clk 0:00:27.8]} 37. Nxh3 {[%clk 0:00:19.8]}
37... Bh6 {[%clk 0:00:27.9]} 38. Nf5 {[%clk 0:00:20.7]} 38... Ra3+ {[%clk
0:00:28.8]} 39. Kg4 {[%clk 0:00:21.8]} 39... Ra4+ {[%clk 0:00:29.7]} 40. Kh5
{[%clk 0:00:21.2]} 40... Bf4 {[%clk 0:00:30.9]} 41. Nxf4 {[%clk 0:00:21.2]}
41... Rxf4 {[%clk 0:00:31.3]} 42. Rxf4 {[%clk 0:00:21]} 42... exf4 {[%clk
0:00:33.2]} 43. Kg4 {[%clk 0:00:22.5]} 43... a5 {[%clk 0:00:33.5]} 44. Kxf4
{[%clk 0:00:23]} 44... a4 {[%clk 0:00:33]} 45. Nd6+ {[%clk 0:00:22.2]} 45... Kd7
{[%clk 0:00:33.9]} 46. Nb5 {[%clk 0:00:23.5]} 46... c4 {[%clk 0:00:31.6]} 47.
Kg5 {[%clk 0:00:21.1]} 47... c3 {[%clk 0:00:22.4]} 48. Nxc3 {[%clk 0:00:21.6]}
48... a3 {[%clk 0:00:24]} 49. Kf4 {[%clk 0:00:21.2]} 49... Kd6 {[%clk
0:00:24.5]} 50. Ke4 {[%clk 0:00:22.8]} 50... Kd7 {[%clk 0:00:21.5]} 51. Kd4
{[%clk 0:00:21.6]} 51... h5 {[%clk 0:00:22.2]} 52. Kc4 {[%clk 0:00:22]} 52... h4
{[%clk 0:00:23.6]} 53. Kb3 {[%clk 0:00:23.1]} 53... h3 {[%clk 0:00:24.9]} 54.
Ne4 {[%clk 0:00:21.8]} 54... h2 {[%clk 0:00:25.8]} 55. Ng3 {[%clk 0:00:20.5]}
55... Kd6 {[%clk 0:00:26.5]} 56. Kxa3 {[%clk 0:00:21]} 56... Kxd5 {[%clk
0:00:28]} 57. Kb4 {[%clk 0:00:20.8]} 57... Ke5 {[%clk 0:00:22.2]} 58. Kb5 {[%clk
0:00:18.8]} 58... Kf4 {[%clk 0:00:22.5]} 59. Nh1 {[%clk 0:00:17.5]} 59... Kf3
{[%clk 0:00:23.3]} 60. Kxb6 {[%clk 0:00:19]} 60... Kg2 {[%clk 0:00:24.5]} 61.
Kc5 {[%clk 0:00:20.3]} 61... Kxh1 {[%clk 0:00:25.8]} 0-1

[Event "*** Titled Tuesday Blitz"]
[Site "Chess.com"]
[Date "2019.08.06"]
[Round "2"]
[White "qqwow"]
[Black "biostatistician"]
[Result "0-1"]
[WhiteElo "2503"]
[BlackElo "2558"]
[TimeControl "180+2"]
[EndTime "13:24:26 PDT"]
[Termination "biostatistician won by resignation"]

1. d4 {[%clk 0:02:59.7]} 1... e6 {[%clk 0:03:01.7]} 2. Nf3 {[%clk 0:02:58.8]}
2... b6 {[%clk 0:03:02.3]} 3. e4 {[%clk 0:02:57.9]} 3... Bb7 {[%clk 0:03:03.4]}
4. Bd3 {[%clk 0:02:59.5]} 4... Nf6 {[%clk 0:03:04.7]} 5. Nbd2 {[%clk 0:03:00.6]}
5... c5 {[%clk 0:03:05.3]} 6. c3 {[%clk 0:03:01]} 6... cxd4 {[%clk 0:03:04.2]}
7. cxd4 {[%clk 0:03:01.9]} 7... Nc6 {[%clk 0:03:05.8]} 8. a3 {[%clk 0:03:02.4]}
8... Be7 {[%clk 0:03:04.1]} 9. Qe2 {[%clk 0:03:03.7]} 9... d5 {[%clk 0:02:56]}
10. e5 {[%clk 0:03:04.7]} 10... Nd7 {[%clk 0:02:57.5]} 11. b4 {[%clk 0:03:01.8]}
11... O-O {[%clk 0:02:55.2]} 12. Bb2 {[%clk 0:03:02.9]} 12... f6 {[%clk
0:02:56.1]} 13. exf6 {[%clk 0:03:02.1]} 13... Nxf6 {[%clk 0:02:54.8]} 14. O-O
{[%clk 0:03:03]} 14... Qd6 {[%clk 0:02:45]} 15. Ng5 {[%clk 0:02:54.2]} 15... Bc8
{[%clk 0:02:29.9]} 16. Rae1 {[%clk 0:02:50]} 16... Nd8 {[%clk 0:02:28]} 17. Ngf3
{[%clk 0:02:11.8]} 17... Ng4 {[%clk 0:02:15.6]} 18. h3 {[%clk 0:02:08.1]} 18...
Nh6 {[%clk 0:02:16.7]} 19. Ne5 {[%clk 0:02:09.1]} 19... Ndf7 {[%clk 0:02:17.4]}
20. f4 {[%clk 0:02:09.8]} 20... Nxe5 {[%clk 0:02:15.5]} 21. fxe5 {[%clk
0:02:10.9]} 21... Qd8 {[%clk 0:02:13.3]} 22. Rxf8+ {[%clk 0:02:10.9]} 22... Qxf8
{[%clk 0:02:14.2]} 23. Rf1 {[%clk 0:02:12]} 23... Qe8 {[%clk 0:02:15.4]} 24. Nf3
{[%clk 0:01:51]} 24... Bd7 {[%clk 0:02:12.7]} 25. Bc1 {[%clk 0:01:50.7]} 25...
Qh5 {[%clk 0:02:13.1]} 26. Bxh7+ {[%clk 0:01:22.8]} 26... Kxh7 {[%clk
0:02:05.6]} 27. Ng5+ {[%clk 0:01:24]} 27... Qxg5 {[%clk 0:02:07.3]} 28. Bxg5
{[%clk 0:01:24.1]} 28... Bxg5 {[%clk 0:02:09.2]} 29. Qd3+ {[%clk 0:01:20.8]}
29... Kg8 {[%clk 0:02:08.6]} 30. Kh2 {[%clk 0:01:21.5]} 30... Be7 {[%clk
0:02:03.3]} 31. g4 {[%clk 0:01:19]} 31... a5 {[%clk 0:02:00]} 32. b5 {[%clk
0:01:18.4]} 32... Rc8 {[%clk 0:01:58.8]} 33. Rf2 {[%clk 0:01:19.2]} 33... Rc4
{[%clk 0:01:53.7]} 34. Rb2 {[%clk 0:01:12.6]} 34... Nf7 {[%clk 0:01:47]} 35. Kg3
{[%clk 0:01:11.6]} 35... Ng5 {[%clk 0:01:47.7]} 36. a4 {[%clk 0:01:01]} 36...
Ne4+ {[%clk 0:01:44.1]} 37. Kg2 {[%clk 0:00:58.2]} 37... Rc3 {[%clk 0:01:37.7]}
38. Qe2 {[%clk 0:00:53.1]} 38... Bg5 {[%clk 0:01:23.4]} 39. Rc2 {[%clk
0:00:52.3]} 39... Rg3+ {[%clk 0:01:24.2]} 40. Kh2 {[%clk 0:00:45.3]} 40... Bf4
{[%clk 0:01:23.8]} 41. Kh1 {[%clk 0:00:38.9]} 41... Rxh3+ {[%clk 0:01:22]} 42.
Kg1 {[%clk 0:00:40.3]} 42... Re3 {[%clk 0:00:43.1]} 43. Qf1 {[%clk 0:00:33.8]}
43... Rg3+ {[%clk 0:00:40.3]} 44. Kh1 {[%clk 0:00:34.5]} 44... Rxg4 {[%clk
0:00:39]} 45. Qh3 {[%clk 0:00:33.2]} 45... Rg6 {[%clk 0:00:33.7]} 46. Qf3 {[%clk
0:00:30.1]} 46... Ng3+ {[%clk 0:00:31.7]} 47. Kg2 {[%clk 0:00:29.4]} 47... Nf5+
{[%clk 0:00:32.1]} 48. Kh1 {[%clk 0:00:29.1]} 48... Nxd4 {[%clk 0:00:29]} 49.
Qxf4 {[%clk 0:00:28.1]} 49... Nxc2 {[%clk 0:00:30.6]} 50. Qc1 {[%clk 0:00:26.6]}
50... Nd4 {[%clk 0:00:26.7]} 51. Qc7 {[%clk 0:00:27.6]} 51... Be8 {[%clk
0:00:27.5]} 52. Qxb6 {[%clk 0:00:28.7]} 52... Nf3 {[%clk 0:00:28.4]} 53. Qe3
{[%clk 0:00:21.7]} 53... Rg1+ {[%clk 0:00:28.6]} 54. Qxg1 {[%clk 0:00:22.8]}
54... Nxg1 {[%clk 0:00:30.5]} 55. Kxg1 {[%clk 0:00:24.7]} 55... Kf8 {[%clk
0:00:31.7]} 56. Kf2 {[%clk 0:00:26.6]} 56... Ke7 {[%clk 0:00:33.2]} 57. Ke3
{[%clk 0:00:28.5]} 57... Kd7 {[%clk 0:00:34.1]} 58. Kd4 {[%clk 0:00:30.4]} 58...
Kc7 {[%clk 0:00:35.8]} 59. Kc5 {[%clk 0:00:32.3]} 59... g5 {[%clk 0:00:37.2]}
60. Kd4 {[%clk 0:00:31.8]} 60... Kb6 {[%clk 0:00:37.3]} 61. Ke3 {[%clk
0:00:32.2]} 61... Kc5 {[%clk 0:00:37.4]} 62. Kf3 {[%clk 0:00:32.2]} 62... Bxb5
{[%clk 0:00:38]} 0-1

[Event "*** Titled Tuesday Blitz"]
[Site "Chess.com"]
[Date "2019.08.06"]
[Round "2"]
[White "JonahWillow"]
[Black "gena217"]
[Result "1-0"]
[WhiteElo "2648"]
[BlackElo "2921"]
[TimeControl "180+2"]
[EndTime "13:24:28 PDT"]
[Termination "JonahWillow won by resignation"]

1. e4 {[%clk 0:03:01.9]} 1... c6 {[%clk 0:02:57.5]} 2. d4 {[%clk 0:03:02.4]}
2... d5 {[%clk 0:02:59.4]} 3. Nc3 {[%clk 0:03:03.5]} 3... a6 {[%clk 0:03:00.3]}
4. e5 {[%clk 0:02:46.2]} 4... Bf5 {[%clk 0:02:59.1]} 5. Nge2 {[%clk 0:02:44.3]}
5... e6 {[%clk 0:02:59.9]} 6. Ng3 {[%clk 0:02:45.3]} 6... Bg6 {[%clk 0:02:56.2]}
7. h4 {[%clk 0:02:44.4]} 7... h6 {[%clk 0:02:56.8]} 8. h5 {[%clk 0:02:45.5]}
8... Bh7 {[%clk 0:02:57.8]} 9. Bd3 {[%clk 0:02:47.2]} 9... Bxd3 {[%clk
0:02:57.5]} 10. Qxd3 {[%clk 0:02:49.1]} 10... c5 {[%clk 0:02:57.8]} 11. Nce2
{[%clk 0:02:43.5]} 11... Qa5+ {[%clk 0:02:36.2]} 12. c3 {[%clk 0:02:32.4]} 12...
Qb5 {[%clk 0:02:37.3]} 13. Qf3 {[%clk 0:02:22.7]} 13... Nd7 {[%clk 0:02:31.4]}
14. O-O {[%clk 0:02:23.3]} 14... Ne7 {[%clk 0:02:31.8]} 15. b3 {[%clk
0:02:18.8]} 15... Nc6 {[%clk 0:02:25.8]} 16. Be3 {[%clk 0:02:08.9]} 16... cxd4
{[%clk 0:01:56.8]} 17. cxd4 {[%clk 0:02:07.5]} 17... Be7 {[%clk 0:01:56.8]} 18.
Qg4 {[%clk 0:02:04.3]} 18... O-O-O {[%clk 0:01:52.4]} 19. Rfc1 {[%clk
0:01:58.6]} 19... Rhg8 {[%clk 0:01:49.7]} 20. Nc3 {[%clk 0:01:52.8]} 20... Qa5
{[%clk 0:01:48.1]} 21. Na4 {[%clk 0:01:37.6]} 21... Ba3 {[%clk 0:01:46.3]} 22.
Rc2 {[%clk 0:01:35.6]} 22... Kb8 {[%clk 0:01:46.8]} 23. Bd2 {[%clk 0:01:30.1]}
23... Qc7 {[%clk 0:01:39.9]} 24. Bc1 {[%clk 0:01:19]} 24... Be7 {[%clk
0:01:35.4]} 25. Bb2 {[%clk 0:01:18.6]} 25... Ncxe5 {[%clk 0:01:35.1]} 26. Qe2
{[%clk 0:00:39.2]} 26... Nc6 {[%clk 0:01:36.3]} 27. Rac1 {[%clk 0:00:39.6]}
27... Rc8 {[%clk 0:01:35.7]} 28. Nf1 {[%clk 0:00:37.8]} 28... Bg5 {[%clk
0:01:28.2]} 29. Ne3 {[%clk 0:00:37]} 29... Qd6 {[%clk 0:01:14.7]} 30. a3 {[%clk
0:00:28.8]} 30... g6 {[%clk 0:01:15.5]} 31. b4 {[%clk 0:00:23.8]} 31... gxh5
{[%clk 0:01:15.8]} 32. Nc5 {[%clk 0:00:24.8]} 32... Nxc5 {[%clk 0:01:15.9]} 33.
bxc5 {[%clk 0:00:26.7]} 33... Qc7 {[%clk 0:01:13.4]} 34. Bc3 {[%clk 0:00:26.7]}
34... h4 {[%clk 0:01:07.6]} 35. Rb1 {[%clk 0:00:25.5]} 35... Bxe3 {[%clk
0:00:58.3]} 36. Qxe3 {[%clk 0:00:21.6]} 36... Ka8 {[%clk 0:00:58.6]} 37. Qxh6
{[%clk 0:00:18.8]} 37... Rg4 {[%clk 0:00:50.6]} 38. f3 {[%clk 0:00:14.9]} 38...
Rxd4 {[%clk 0:00:35.8]} 39. Bxd4 {[%clk 0:00:14.3]} 39... Nxd4 {[%clk
0:00:37.7]} 40. Rf2 {[%clk 0:00:11.7]} 40... Nf5 {[%clk 0:00:37.3]} 41. Qc1
{[%clk 0:00:10.8]} 41... Qxc5 {[%clk 0:00:37.4]} 42. Qxc5 {[%clk 0:00:12.7]}
42... Rxc5 {[%clk 0:00:39]} 43. Rfb2 {[%clk 0:00:12.9]} 43... b5 {[%clk
0:00:27.5]} 44. a4 {[%clk 0:00:12.8]} 44... Nd6 {[%clk 0:00:29.1]} 45. axb5
{[%clk 0:00:13.7]} 45... axb5 {[%clk 0:00:31]} 46. Ra1+ {[%clk 0:00:14.3]} 46...
Kb7 {[%clk 0:00:32.5]} 47. Rba2 {[%clk 0:00:16.2]} 47... Nc8 {[%clk 0:00:30.3]}
48. Rb1 {[%clk 0:00:15.5]} 48... Na7 {[%clk 0:00:18.1]} 49. Rba1 {[%clk
0:00:15.7]} 49... Nc6 {[%clk 0:00:19.1]} 50. Kh2 {[%clk 0:00:10.9]} 50... d4
{[%clk 0:00:20.2]} 51. Rb1 {[%clk 0:00:11.2]} 51... d3 {[%clk 0:00:19.7]} 52.
Rd2 {[%clk 0:00:11]} 52... Rd5 {[%clk 0:00:20.9]} 53. Rb3 {[%clk 0:00:11.3]}
53... Ne5 {[%clk 0:00:21.5]} 54. f4 {[%clk 0:00:11.7]} 54... Ng4+ {[%clk
0:00:22.8]} 55. Kh3 {[%clk 0:00:13]} 55... f5 {[%clk 0:00:21.9]} 56. Kxh4 {[%clk
0:00:14.1]} 56... Ne3 {[%clk 0:00:19.2]} 57. Rbxd3 {[%clk 0:00:14.5]} 57...
Nxg2+ {[%clk 0:00:19.5]} 58. Kg5 {[%clk 0:00:14.5]} 58... Rc5 {[%clk 0:00:15.5]}
59. Rxg2 {[%clk 0:00:15.2]} 59... b4 {[%clk 0:00:15.8]} 60. Rb2 {[%clk
0:00:16.3]} 60... Rb5 {[%clk 0:00:17.2]} 61. Rdb3 {[%clk 0:00:16.7]} 61... Kc6
{[%clk 0:00:19.1]} 62. Rxb4 {[%clk 0:00:18.3]} 62... Rd5 {[%clk 0:00:21]} 63.
Rb6+ {[%clk 0:00:19.3]} 63... Kc7 {[%clk 0:00:22]} 64. Rb7+ {[%clk 0:00:20.9]}
64... Kc8 {[%clk 0:00:23.2]} 65. Rb8+ {[%clk 0:00:22.4]} 65... Kc7 {[%clk
0:00:24.9]} 66. R2b7+ {[%clk 0:00:24.3]} 66... Kc6 {[%clk 0:00:26.3]} 67. Re7
{[%clk 0:00:25.5]} 1-0

[Event "*** Titled Tuesday Blitz"]
[Site "Chess.com"]
[Date "2019.08.06"]
[Round "2"]
[White "Cayse"]
[Black "joppie2"]
[Result "1/2-1/2"]
[WhiteElo "2647"]
[BlackElo "2888"]
[TimeControl "180+2"]
[EndTime "13:24:29 PDT"]
[Termination "Game drawn by repetition"]

1. d4 {[%clk 0:03:01.9]} 1... Nf6 {[%clk 0:02:59.9]} 2. Bf4 {[%clk 0:03:02.4]}
2... d5 {[%clk 0:02:59.2]} 3. e3 {[%clk 0:03:03.1]} 3... e6 {[%clk 0:02:59.3]}
4. Nf3 {[%clk 0:03:02.3]} 4... Bd6 {[%clk 0:03:00.6]} 5. Nbd2 {[%clk 0:03:01.1]}
5... b6 {[%clk 0:03:01]} 6. Bg3 {[%clk 0:02:49.1]} 6... Bb7 {[%clk 0:02:58.6]}
7. c3 {[%clk 0:02:43]} 7... O-O {[%clk 0:02:59.2]} 8. Bd3 {[%clk 0:02:42.7]}
8... c5 {[%clk 0:03:00.1]} 9. Ne5 {[%clk 0:02:35.3]} 9... Nc6 {[%clk 0:02:57.4]}
10. f4 {[%clk 0:02:34.9]} 10... Ne7 {[%clk 0:02:58.2]} 11. Bh4 {[%clk
0:02:00.3]} 11... Ne4 {[%clk 0:02:14.2]} 12. Nxe4 {[%clk 0:01:25.5]} 12... dxe4
{[%clk 0:02:15.3]} 13. Bc4 {[%clk 0:01:27]} 13... Qc7 {[%clk 0:02:11.9]} 14.
Bxe7 {[%clk 0:01:23.3]} 14... Qxe7 {[%clk 0:02:07.6]} 15. O-O {[%clk 0:01:23.8]}
15... Kh8 {[%clk 0:01:39.1]} 16. Qh5 {[%clk 0:01:20.8]} 16... Rac8 {[%clk
0:01:35.1]} 17. Bb3 {[%clk 0:01:10.1]} 17... g6 {[%clk 0:01:25.6]} 18. Qh6
{[%clk 0:00:59.6]} 18... Kg8 {[%clk 0:01:24.4]} 19. Qh3 {[%clk 0:00:49.2]} 19...
Bd5 {[%clk 0:01:20.9]} 20. Ng4 {[%clk 0:00:35.6]} 20... c4 {[%clk 0:01:01.4]}
21. Ba4 {[%clk 0:00:32.6]} 21... a6 {[%clk 0:01:01.4]} 22. Kh1 {[%clk
0:00:15.5]} 22... b5 {[%clk 0:01:02.4]} 23. Bc2 {[%clk 0:00:16.6]} 23... a5
{[%clk 0:01:02.3]} 24. Nh6+ {[%clk 0:00:14.4]} 24... Kh8 {[%clk 0:00:59.6]} 25.
g4 {[%clk 0:00:15.2]} 25... b4 {[%clk 0:00:35.9]} 26. g5 {[%clk 0:00:15.3]}
26... f5 {[%clk 0:00:23]} 27. gxf6 {[%clk 0:00:16.2]} 27... Qxf6 {[%clk
0:00:24.4]} 28. Rg1 {[%clk 0:00:16.4]} 28... Rb8 {[%clk 0:00:23.4]} 29. Rg2
{[%clk 0:00:17.2]} 29... bxc3 {[%clk 0:00:22.6]} 30. bxc3 {[%clk 0:00:18]} 30...
Rb2 {[%clk 0:00:24.1]} 31. a4 {[%clk 0:00:14]} 31... Bxf4 {[%clk 0:00:25.4]} 32.
Ng4 {[%clk 0:00:13.2]} 32... Qf7 {[%clk 0:00:17.7]} 33. exf4 {[%clk 0:00:14.3]}
33... e3 {[%clk 0:00:19.6]} 34. Nxe3 {[%clk 0:00:15.4]} 34... Bxg2+ {[%clk
0:00:20.8]} 35. Qxg2 {[%clk 0:00:16.3]} 35... Qxf4 {[%clk 0:00:22.4]} 36. Rf1
{[%clk 0:00:17]} 36... Qd6 {[%clk 0:00:16.4]} 37. Rxf8+ {[%clk 0:00:12.2]} 37...
Qxf8 {[%clk 0:00:18.3]} 38. Qg3 {[%clk 0:00:09.7]} 38... Qf6 {[%clk 0:00:13.7]}
39. Kg1 {[%clk 0:00:07]} 39... Ra2 {[%clk 0:00:14.7]} 40. Qb8+ {[%clk
0:00:07.8]} 40... Kg7 {[%clk 0:00:15.1]} 41. Qb7+ {[%clk 0:00:08.3]} 41... Qf7
{[%clk 0:00:14.3]} 42. Qb1 {[%clk 0:00:08]} 42... Ra3 {[%clk 0:00:09.9]} 43. Qb2
{[%clk 0:00:09.1]} 43... Qf3 {[%clk 0:00:11.5]} 44. Qxa3 {[%clk 0:00:08.5]}
44... Qxe3+ {[%clk 0:00:12.9]} 45. Kf1 {[%clk 0:00:09.1]} 45... Qf3+ {[%clk
0:00:13.5]} 46. Ke1 {[%clk 0:00:10.3]} 46... Qe3+ {[%clk 0:00:10.8]} 47. Kd1
{[%clk 0:00:11.5]} 47... Qg1+ {[%clk 0:00:11.9]} 48. Kd2 {[%clk 0:00:12.9]}
48... Qg5+ {[%clk 0:00:11.4]} 49. Ke2 {[%clk 0:00:13.3]} 49... Qg2+ {[%clk
0:00:12.5]} 50. Kd1 {[%clk 0:00:14.3]} 50... Qf1+ {[%clk 0:00:13.9]} 51. Kd2
{[%clk 0:00:14.5]} 51... Qf4+ {[%clk 0:00:15.5]} 52. Ke2 {[%clk 0:00:15.7]}
52... Qg4+ {[%clk 0:00:16.8]} 53. Ke3 {[%clk 0:00:15]} 53... Qg1+ {[%clk
0:00:16.9]} 54. Kf4 {[%clk 0:00:12.7]} 54... Qf2+ {[%clk 0:00:17.7]} 55. Ke5
{[%clk 0:00:13.9]} 55... Qxh2+ {[%clk 0:00:16.9]} 56. Kxe6 {[%clk 0:00:14.2]}
56... Qe2+ {[%clk 0:00:18.2]} 57. Kd7 {[%clk 0:00:13.3]} 57... Qxc2 {[%clk
0:00:19.7]} 58. Qe7+ {[%clk 0:00:14.1]} 58... Kh6 {[%clk 0:00:20.7]} 59. Qh4+
{[%clk 0:00:14.7]} 59... Kg7 {[%clk 0:00:22.3]} 60. Qe7+ {[%clk 0:00:14.9]}
60... Kh6 {[%clk 0:00:23.9]} 61. Qh4+ {[%clk 0:00:14.4]} 61... Kg7 {[%clk
0:00:25]} 62. Qe7+ {[%clk 0:00:14]} 1/2-1/2

[Event "*** Titled Tuesday Blitz"]
[Site "Chess.com"]
[Date "2019.08.06"]
[Round "2"]
[White "Ginzburg_Yakov"]
[Black "Eliwood44"]
[Result "1-0"]
[WhiteElo "2500"]
[BlackElo "2336"]
[TimeControl "180+2"]
[EndTime "13:24:32 PDT"]
[Termination "Ginzburg_Yakov won by resignation"]

1. e4 {[%clk 0:03:01.4]} 1... e5 {[%clk 0:03:00.3]} 2. Nf3 {[%clk 0:03:02.2]}
2... Nc6 {[%clk 0:03:01.7]} 3. Bb5 {[%clk 0:03:02.8]} 3... a6 {[%clk 0:03:02.1]}
4. Bxc6 {[%clk 0:03:03.6]} 4... bxc6 {[%clk 0:02:59.9]} 5. O-O {[%clk
0:03:03.2]} 5... d6 {[%clk 0:02:59.9]} 6. d4 {[%clk 0:02:58.9]} 6... f6 {[%clk
0:02:58.3]} 7. h3 {[%clk 0:02:57.3]} 7... Ne7 {[%clk 0:02:50]} 8. c3 {[%clk
0:02:54.5]} 8... Ng6 {[%clk 0:02:49.2]} 9. Na3 {[%clk 0:02:39.9]} 9... Be7
{[%clk 0:02:46.9]} 10. Nc2 {[%clk 0:02:37.1]} 10... O-O {[%clk 0:02:40.2]} 11.
Nb4 {[%clk 0:02:37.7]} 11... Bd7 {[%clk 0:02:38.6]} 12. Nd3 {[%clk 0:02:38.6]}
12... Kh8 {[%clk 0:02:31.3]} 13. Re1 {[%clk 0:02:36.2]} 13... Rb8 {[%clk
0:02:29.9]} 14. Be3 {[%clk 0:02:20.4]} 14... d5 {[%clk 0:02:24.2]} 15. Nd2
{[%clk 0:02:06]} 15... dxe4 {[%clk 0:02:18.7]} 16. Nxe4 {[%clk 0:02:06.9]} 16...
f5 {[%clk 0:02:19.8]} 17. Nec5 {[%clk 0:02:06.5]} 17... f4 {[%clk 0:01:46.7]}
18. Bd2 {[%clk 0:02:07.4]} 18... exd4 {[%clk 0:01:47.4]} 19. cxd4 {[%clk
0:02:06.5]} 19... f3 {[%clk 0:01:30.5]} 20. g4 {[%clk 0:01:56.3]} 20... Bd6
{[%clk 0:01:00.1]} 21. Re4 {[%clk 0:01:35.4]} 21... Qh4 {[%clk 0:00:37.4]} 22.
Qf1 {[%clk 0:01:35.8]} 22... Rbd8 {[%clk 0:00:23.5]} 23. Rae1 {[%clk 0:01:35.9]}
23... Bc8 {[%clk 0:00:24]} 24. Ne6 {[%clk 0:01:29.4]} 24... Bxe6 {[%clk
0:00:24.3]} 25. Rxe6 {[%clk 0:01:31]} 25... Bf4 {[%clk 0:00:16.6]} 26. Bb4
{[%clk 0:01:07]} 26... Bd6 {[%clk 0:00:04.2]} 27. Bd2 {[%clk 0:00:52.1]} 27...
Nf4 {[%clk 0:00:05.4]} 28. Bxf4 {[%clk 0:00:45.1]} 28... Bxf4 {[%clk 0:00:07.3]}
29. R1e4 {[%clk 0:00:44.3]} 29... Bd6 {[%clk 0:00:07.3]} 30. Ne5 {[%clk
0:00:37.6]} 30... Bxe5 {[%clk 0:00:08.1]} 31. R6xe5 {[%clk 0:00:38.9]} 31... Qf6
{[%clk 0:00:08.5]} 32. Qc4 {[%clk 0:00:35.4]} 32... c5 {[%clk 0:00:07.8]} 33.
Rxc5 {[%clk 0:00:33.6]} 33... h6 {[%clk 0:00:07.2]} 34. Kh2 {[%clk 0:00:29.6]}
34... Qd6+ {[%clk 0:00:07.8]} 35. Rce5 {[%clk 0:00:30.1]} 35... Qb6 {[%clk
0:00:06.9]} 36. b4 {[%clk 0:00:30.8]} 36... Rd6 {[%clk 0:00:06.2]} 37. a4 {[%clk
0:00:30.4]} 37... Rdf6 {[%clk 0:00:06.9]} 38. Qc5 {[%clk 0:00:28.2]} 38... Qb8
{[%clk 0:00:07]} 39. Kg3 {[%clk 0:00:28]} 39... c6 {[%clk 0:00:08.1]} 40. a5
{[%clk 0:00:26.2]} 40... Qc7 {[%clk 0:00:09.2]} 41. h4 {[%clk 0:00:27.4]} 41...
h5 {[%clk 0:00:09.7]} 42. g5 {[%clk 0:00:28.2]} 42... Rf5 {[%clk 0:00:10.9]} 43.
Kh3 {[%clk 0:00:28.1]} 43... Rf4 {[%clk 0:00:11]} 44. Rxf4 {[%clk 0:00:27.8]}
44... Rxf4 {[%clk 0:00:12.9]} 45. Re8+ {[%clk 0:00:22.2]} 45... Kh7 {[%clk
0:00:13.9]} 46. g6+ {[%clk 0:00:23.7]} 46... Kxg6 {[%clk 0:00:12.6]} 47. Qg5+
{[%clk 0:00:24.1]} 47... Kf7 {[%clk 0:00:13.8]} 48. Qxh5+ {[%clk 0:00:24.9]}
48... Kf6 {[%clk 0:00:10.2]} 49. Rf8+ {[%clk 0:00:26.1]} 49... Ke6 {[%clk
0:00:09.8]} 50. Qg6+ {[%clk 0:00:13]} 50... Rf6 {[%clk 0:00:10.3]} 51. Qe4+
{[%clk 0:00:11.2]} 51... Kd7 {[%clk 0:00:09.1]} 52. Rxf6 {[%clk 0:00:12]} 52...
gxf6 {[%clk 0:00:09.7]} 53. Qh7+ {[%clk 0:00:13.3]} 53... Kd6 {[%clk 0:00:10.5]}
54. Qxc7+ {[%clk 0:00:14.4]} 54... Kxc7 {[%clk 0:00:12.4]} 55. h5 {[%clk
0:00:16.2]} 55... Kd6 {[%clk 0:00:12.7]} 56. h6 {[%clk 0:00:17.1]} 56... Kd5
{[%clk 0:00:14.2]} 57. h7 {[%clk 0:00:18.2]} 57... c5 {[%clk 0:00:16.1]} 58.
dxc5 {[%clk 0:00:18.4]} 58... Kc4 {[%clk 0:00:16.8]} 1-0